[Event "Marmaris PHYSKOS GM 2018"]
[Site "Icmeler"]
[Date "2018.11.18"]
[Round "5.4"]
[White "Yurtseven, Melih"]
[Black "Quparadze, Giga"]
[Result "1-0"]
[ECO "A05"]
[WhiteElo "2397"]
[BlackElo "2509"]
[Annotator "ChessBase"]
[PlyCount "173"]
[EventDate "2018.11.16"]
[EventType "schev"]
[EventCountry "TUR"]
[SourceTitle "playchess.com"]
[Source "ChessBase"]
[SourceQuality "1"]
[TimeControl "5400+30"]

1. Nf3 {[%emt 0:05:30]} Nf6 {[%emt 0:00:30]} 2. g3 {[%emt 0:00:30]} b5 {[%emt 0:00:30]} 3. Bg2 {[%emt 0:00:00]} Bb7 {[%emt 0:00:00]} 4. O-O {[%emt 0:00:00]} c5 {[%emt 0:00:00]} 5. d3 {[%emt 0:00:30]} d6 {[%emt 0:00:30]} 6. a4 {[%emt 0:00:30]} b4 {[%emt 0:00:30]} 7. Nbd2 {[%emt 0:04:30]} e6 {[%emt 0:00:00]} 8. e4 {[%emt 0:02:30]} Be7 {[%emt 0:00:00]} 9. Re1 {[%emt 0:00:30]} Nfd7 {[%emt 0:00:30]} 10. Nc4 {[%emt 0:02:30]} O-O {[%emt 0:00:30]} 11. a5 {[%emt 0:05:30]} Nc6 {[%emt 0:03:30]} 12. Bf4 {[%emt 0:04:30]} e5 {[%emt 0:00:30]} 13. Be3 {[%emt 0:00:30]} Ba6 {[%emt 0:00:30]} 14. Nfd2 {[%emt 0:00:00]} Re8 {[%emt 0:01:30]} 15. f4 {[%emt 0:06:00]} Rc8 {[%emt 0:00:30]} 16. Rf1 {[%emt 0:04:30]} exf4 {[%emt 0:00:30]} 17. gxf4 {[%emt 0:00:30]} Bf8 {[%emt 0:00:30]} 18. Bf2 {[%emt 0:02:30]} Nf6 {[%emt 0:02:30]} 19. Bh4 {[%emt 0:00:30]} Be7 {[%emt 0:00:30]} 20. Ne3 {[%emt 0:06:30]} Nd5 {[%emt 0:01:30]} 21. exd5 {[%emt 0:18:30]} Bxh4 {[%emt 0:00:30]} 22. Ne4 {[%emt 0:00:30]} Nd4 {[%emt 0:00:30]} 23. f5 {[%emt 0:02:30]} Bg5 {[%emt 0:02:30]} 24. Ng4 {[%emt 0:09:30]} b3 {[%emt 0:02:30]} 25. c3 {[%emt 0:02:30]} Nc2 {[%emt 0:00:30]} 26. f6 {[%emt 0:00:30]} Rxe4 {[%emt 0:02:30]} 27. Bxe4 {[%emt 0:01:30]} g6 {[%emt 0:00:00]} 28. h4 {[%emt 0:02:03]} Be3+ {[%emt 0:02:00]} 29. Nxe3 {[%emt 0:09:55]} Nxe3 {[%emt 0:00:30]} 30. Qd2 {[%emt 0:00:08]} Nxf1 {[%emt 0:00:00]} 31. Rxf1 {[%emt 0:00:01]} Qf8 {[%emt 0:02:00]} 32. h5 {[%emt 0:00:43]} Kh8 {[%emt 0:04:30]} 33. Rf3 {[%emt 0:06:55]} Rc7 {[%emt 0:00:30]} 34. Qf4 {[%emt 0:02:58]} Bc8 {[%emt 0:00:30]} 35. Rg3 {[%emt 0:00:16]} Bd7 {[%emt 0:02:30]} 36. hxg6 {[%emt 0:00:49]} fxg6 {[%emt 0:00:30]} 37. Bxg6 {[%emt 0:00:17]} Be8 {[%emt 0:00:30]} 38. Bxe8 {[%emt 0:00:39]} Qxe8 {[%emt 0:00:30]} 39. Kf2 {[%emt 0:00:44]} Qf8 {[%emt 0:01:30]} 40. Re3 {[%emt 0:00:06]} a6 {[%emt 0:01:30]} 41. Re6 {[%emt 0:00:07]} Rd7 {[%emt 0:00:00]} 42. Qe4 {[%emt 0:00:45]} Rd8 {[%emt 0:00:00]} 43. c4 {[%emt 0:00:38]} Qf7 {[%emt 0:00:30]} 44. Qf5 {[%emt 0:00:31]} Rd7 {[%emt 0:01:30]} 45. Qe4 {[%emt 0:00:02]} Rd8 {[%emt 0:00:30]} 46. Qf5 {[%emt 0:00:01]} Rd7 {[%emt 0:00:00]} 47. Qg5 {[%emt 0:01:22]} Qf8 {[%emt 0:00:00]} 48. Ke3 {[%emt 0:00:42]} Rf7 {[%emt 0:00:30]} 49. Kf3 {[%emt 0:00:36]} Rd7 {[%emt 0:01:30]} 50. Ke4 {[%emt 0:00:17]} Rf7 {[%emt 0:00:00]} 51. Kf5 {[%emt 0:00:13]} Qc8 {[%emt 0:00:00]} 52. Qg3 {[%emt 0:01:01]} Rd7 {[%emt 0:00:30]} 53. Qg4 {[%emt 0:00:29]} Rf7 {[%emt 0:00:30]} 54. Qh4 {[%emt 0:00:29]} Qf8 {[%emt 0:01:30]} 55. Qe4 {[%emt 0:00:37]} Qc8 {[%emt 0:00:30]} 56. Qe2 {[%emt 0:00:33]} Qf8 {[%emt 0:00:30]} 57. Qh5 {[%emt 0:00:26]} Kg8 {[%emt 0:00:30]} 58. Qg4+ {[%emt 0:00:20]} Kh8 {[%emt 0:00:30]} 59. Qg3 {[%emt 0:00:42]} Rd7 {[%emt 0:00:00]} 60. Ke4 {[%emt 0:00:19]} Rd8 {[%emt 0:00:00]} 61. Qg5 {[%emt 0:00:40]} Rd7 {[%emt 0:01:30]} 62. d4 {[%emt 0:00:11]} cxd4 {[%emt 0:00:00]} 63. Kxd4 {[%emt 0:00:02]} Rf7 {[%emt 0:00:00]} 64. Qf4 {[%emt 0:00:20]} Rd7 {[%emt 0:00:30]} 65. Qg3 {[%emt 0:00:26]} Qb8 {[%emt 0:00:30]} 66. Qe1 {[%emt 0:01:00]} Rd8 {[%emt 0:00:30]} 67. Kd3 {[%emt 0:00:13]} Rf8 {[%emt 0:00:30]} 68. Qg3 {[%emt 0:01:08]} Rf7 {[%emt 0:00:30]} 69. Qxd6 {[%emt 0:00:35]} Qg8 {[%emt 0:00:00]} 70. Qf4 {[%emt 0:00:20]} Qg6+ {[%emt 0:00:00]} 71. Qe4 {[%emt 0:00:31]} Qg3+ {[%emt 0:00:30]} 72. Qe3 {[%emt 0:00:17]} Qg6+ {[%emt 0:00:00]} 73. Kd4 {[%emt 0:00:15]} Rf8 {[%emt 0:00:00]} 74. d6 {[%emt 0:00:47]} Qg4+ {[%emt 0:00:30]} 75. Qe4 {[%emt 0:00:46]} Qg5 {[%emt 0:00:30]} 76. Qe5 {[%emt 0:00:41]} Qd2+ {[%emt 0:00:00]} 77. Ke4 {[%emt 0:00:20]} Qe2+ {[%emt 0:02:00]} 78. Kd4 {[%emt 0:00:35]} Qxb2+ {[%emt 0:01:30]} 79. Kc5 {[%emt 0:00:32]} Qa3+ {[%emt 0:00:00]} 80. Kd4 {[%emt 0:00:31]} Qa1+ {[%emt 0:01:00]} 81. Kd5 {[%emt 0:00:33]} Qxa5+ {[%emt 0:03:30]} 82. c5 {[%emt 0:00:22]} Qd2+ {[%emt 0:00:30]} 83. Kc6 {[%emt 0:00:29]} Qg2+ {[%emt 0:00:30]} 84. Kc7 {[%emt 0:00:26]} h6 {[%emt 0:05:30]} 85. f7+ {[%emt 0:00:15]} Kh7 {[%emt 0:00:30]} 86. Qf5+ {[%emt 0:00:13]} Kh8 {[%emt 0:00:00]} 87. Rxh6+ {[%emt 0:00:22]} 1-0

[Event "Marmaris PHYSKOS GM 2018"]
[Site "Icmeler"]
[Date "2018.11.18"]
[Round "5.5"]
[White "Ozer, Omer Faruk"]
[Black "Odeev, Handszar"]
[Result "1/2-1/2"]
[ECO "B23"]
[WhiteElo "2373"]
[BlackElo "2406"]
[Annotator "ChessBase"]
[PlyCount "85"]
[EventDate "2018.11.16"]
[EventType "schev"]
[EventCountry "TUR"]
[SourceTitle "playchess.com"]
[Source "ChessBase"]
[SourceQuality "1"]
[TimeControl "5400+30"]

1. e4 {[%emt 0:00:30]} c5 {[%emt 0:09:30]} 2. Nc3 {[%emt 0:00:00]} g6 {[%emt 0:02:30]} 3. h4 {[%emt 0:00:00]} h5 {[%emt 0:03:30]} 4. d4 {[%emt 0:01:30]} cxd4 {[%emt 0:08:30]} 5. Qxd4 {[%emt 0:00:30]} Nf6 {[%emt 0:00:00]} 6. Bg5 {[%emt 0:00:30]} Nc6 {[%emt 0:00:00]} 7. Qd2 {[%emt 0:00:30]} Bg7 {[%emt 0:00:30]} 8. f3 {[%emt 0:01:30]} d6 {[%emt 0:02:30]} 9. O-O-O {[%emt 0:01:30]} Bd7 {[%emt 0:06:30]} 10. Bc4 {[%emt 0:13:30]} Na5 {[%emt 0:14:30]} 11. Bb3 {[%emt 0:01:30]} Nxb3+ {[%emt 0:00:30]} 12. cxb3 {[%emt 0:00:00]} b5 {[%emt 0:07:30]} 13. Kb1 {[%emt 0:08:00]} b4 {[%emt 0:00:30]} 14. Na4 {[%emt 0:00:30]} Qa5 {[%emt 0:02:30]} 15. Ne2 {[%emt 0:01:30]} Bxa4 {[%emt 0:01:30]} 16. bxa4 {[%emt 0:00:30]} Qxa4 {[%emt 0:00:00]} 17. Nd4 {[%emt 0:03:30]} Rc8 {[%emt 0:09:00]} 18. Rde1 {[%emt 0:06:30]} Nd7 {[%emt 0:02:30]} 19. Rc1 {[%emt 0:06:30]} Nc5 {[%emt 0:08:31]} 20. Rc4 {[%emt 0:01:30]} Qd7 {[%emt 0:02:56]} 21. Rhc1 {[%emt 0:04:30]} O-O {[%emt 0:00:32]} 22. Rxb4 {[%emt 0:02:30]} Rb8 {[%emt 0:03:57]} 23. Rc2 {[%emt 0:13:30]} a5 {[%emt 0:03:17]} 24. Rbc4 {[%emt 0:00:00]} a4 {[%emt 0:02:47]} 25. Bh6 {[%emt 0:00:00]} Bxh6 {[%emt 0:07:18]} 26. Qxh6 {[%emt 0:00:30]} Rfc8 {[%emt 0:00:56]} 27. g4 {[%emt 0:01:30]} Nd3 {[%emt 0:00:37]} 28. Rxc8+ {[%emt 0:14:43]} Rxc8 {[%emt 0:00:02]} 29. gxh5 {[%emt 0:00:07]} Rxc2 {[%emt 0:00:34]} 30. Kxc2 {[%emt 0:00:08]} Nb4+ {[%emt 0:00:36]} 31. Kb1 {[%emt 0:03:19]} Qh3 {[%emt 0:00:28]} 32. Qc1 {[%emt 0:00:07]} e5 {[%emt 0:00:51]} 33. Nc2 {[%emt 0:03:23]} Nd3 {[%emt 0:00:30]} 34. Qd1 {[%emt 0:00:40]} Nf2 {[%emt 0:00:30]} 35. Qe2 {[%emt 0:00:20]} Qh1+ {[%emt 0:00:18]} 36. Ne1 {[%emt 0:00:01]} Nd3 {[%emt 0:00:42]} 37. Qxd3 {[%emt 0:00:07]} Qxe1+ {[%emt 0:00:04]} 38. Kc2 {[%emt 0:00:04]} Qf2+ {[%emt 0:00:21]} 39. Kc1 {[%emt 0:01:08]} Qc5+ {[%emt 0:00:44]} 40. Kd1 {[%emt 0:01:10]} Qg1+ {[%emt 0:00:06]} 41. Kc2 {[%emt 0:00:06]} Qc5+ {[%emt 0:00:41]} 42. Kd1 {[%emt 0:00:04]} Qg1+ {[%emt 0:00:14]} 43. Kc2 {[%emt 0:00:03]} 1/2-1/2

[Event "Marmaris PHYSKOS GM 2018"]
[Site "Icmeler"]
[Date "2018.11.18"]
[Round "6.4"]
[White "Odeev, Handszar"]
[Black "Yurtseven, Melih"]
[Result "1/2-1/2"]
[ECO "B81"]
[WhiteElo "2406"]
[BlackElo "2397"]
[Annotator "ChessBase"]
[PlyCount "97"]
[EventDate "2018.11.16"]
[EventType "schev"]
[EventCountry "TUR"]
[SourceTitle "playchess.com"]
[Source "ChessBase"]
[SourceQuality "1"]
[TimeControl "5400+30"]

1. e4 {[%emt 0:05:30]} c5 {[%emt 0:00:30]} 2. Nf3 {[%emt 0:00:30]} d6 {[%emt 0:01:30]} 3. d4 {[%emt 0:01:30]} cxd4 {[%emt 0:00:30]} 4. Nxd4 {[%emt 0:02:30]} Nf6 {[%emt 0:01:30]} 5. Nc3 {[%emt 0:00:30]} e6 {[%emt 0:01:30]} 6. g4 {[%emt 0:02:30]} h6 {[%emt 0:01:30]} 7. h4 {[%emt 0:00:30]} Nc6 {[%emt 0:00:30]} 8. Rg1 {[%emt 0:00:30]} Nd7 {[%emt 0:10:30]} 9. g5 {[%emt 0:02:30]} hxg5 {[%emt 0:00:30]} 10. hxg5 {[%emt 0:00:30]} Nxd4 {[%emt 0:06:30]} 11. Qxd4 {[%emt 0:00:30]} Ne5 {[%emt 0:00:30]} 12. Be2 {[%emt 0:05:30]} Nc6 {[%emt 0:08:30]} 13. Qd3 {[%emt 0:06:30]} g6 {[%emt 0:05:30]} 14. Be3 {[%emt 0:10:30]} a6 {[%emt 0:00:30]} 15. O-O-O {[%emt 0:00:30]} Qa5 {[%emt 0:00:30]} 16. Rh1 {[%emt 0:31:30]} Rxh1 {[%emt 0:18:30]} 17. Rxh1 {[%emt 0:00:30]} Bd7 {[%emt 0:00:00]} 18. f4 {[%emt 0:04:30]} Nb4 {[%emt 0:07:00]} 19. Qc4 {[%emt 0:00:30]} Rc8 {[%emt 0:00:30]} 20. Qb3 {[%emt 0:00:30]} Bg7 {[%emt 0:13:45]} 21. a3 {[%emt 0:05:11]} Nxc2 {[%emt 0:06:05]} 22. Qxc2 {[%emt 0:07:56]} Bxc3 {[%emt 0:00:16]} 23. Kb1 {[%emt 0:01:28]} Bg7 {[%emt 0:00:35]} 24. Qb3 {[%emt 0:03:39]} Qa4 {[%emt 0:01:15]} 25. Qxa4 {[%emt 0:01:33]} Bxa4 {[%emt 0:00:03]} 26. Bd3 {[%emt 0:00:26]} Bc6 {[%emt 0:08:23]} 27. Bc2 {[%emt 0:04:01]} Ke7 {[%emt 0:03:53]} 28. Rh7 {[%emt 0:00:23]} Kf8 {[%emt 0:00:16]} 29. Rh2 {[%emt 0:00:11]} d5 {[%emt 0:01:42]} 30. e5 {[%emt 0:00:49]} Kg8 {[%emt 0:01:02]} 31. Bb6 {[%emt 0:01:04]} Bf8 {[%emt 0:00:42]} 32. a4 {[%emt 0:00:46]} Bb4 {[%emt 0:00:33]} 33. Rh3 {[%emt 0:00:31]} Kg7 {[%emt 0:00:13]} 34. b3 {[%emt 0:00:30]} Bd2 {[%emt 0:00:36]} 35. Be3 {[%emt 0:00:22]} Bc3 {[%emt 0:00:22]} 36. Bc5 {[%emt 0:00:20]} d4 {[%emt 0:00:30]} 37. Be7 {[%emt 0:00:05]} Rg8 {[%emt 0:00:39]} 38. Kc1 {[%emt 0:00:20]} Bg2 {[%emt 0:00:53]} 39. Rg3 {[%emt 0:00:30]} Bd5 {[%emt 0:00:31]} 40. Kd1 {[%emt 0:00:32]} a5 {[%emt 0:00:43]} 41. Ke2 {[%emt 0:00:40]} Bb4 {[%emt 0:00:27]} 42. Bf6+ {[%emt 0:00:14]} Kf8 {[%emt 0:00:04]} 43. Rh3 {[%emt 0:01:11]} Bc3 {[%emt 0:00:51]} 44. Rh2 {[%emt 0:00:40]} Ke8 {[%emt 0:00:34]} 45. Rh7 {[%emt 0:00:10]} Bb4 {[%emt 0:00:30]} 46. Kd3 {[%emt 0:00:36]} Bc3 {[%emt 0:00:18]} 47. Ke2 {[%emt 0:00:20]} Bb4 {[%emt 0:00:31]} 48. Kd3 {[%emt 0:00:02]} Bc3 {[%emt 0:00:27]} 49. Ke2 {[%emt 0:00:02]} 1/2-1/2

[Event "Marmaris PHYSKOS GM 2018"]
[Site "Icmeler"]
[Date "2018.11.18"]
[Round "6.5"]
[White "Simantsev, Mikhail"]
[Black "Ozer, Omer Faruk"]
[Result "1-0"]
[ECO "E83"]
[WhiteElo "2403"]
[BlackElo "2373"]
[Annotator "ChessBase"]
[PlyCount "95"]
[EventDate "2018.11.16"]
[EventType "schev"]
[EventCountry "TUR"]
[SourceTitle "playchess.com"]
[Source "ChessBase"]
[SourceQuality "1"]
[TimeControl "5400+30"]

1. d4 {[%emt 0:02:30]} Nf6 {[%emt 0:00:30]} 2. c4 {[%emt 0:02:30]} g6 {[%emt 0:01:30]} 3. f3 {[%emt 0:02:30]} Bg7 {[%emt 0:05:30]} 4. e4 {[%emt 0:00:30]} d6 {[%emt 0:00:30]} 5. Nc3 {[%emt 0:00:30]} O-O {[%emt 0:00:30]} 6. Be3 {[%emt 0:00:30]} Nc6 {[%emt 0:01:30]} 7. Qd2 {[%emt 0:13:30]} a6 {[%emt 0:08:30]} 8. Rc1 {[%emt 0:01:30]} Bd7 {[%emt 0:02:30]} 9. Nd1 {[%emt 0:09:30]} Re8 {[%emt 0:07:30]} 10. Ne2 {[%emt 0:02:30]} e6 {[%emt 0:10:30]} 11. Nf2 {[%emt 0:06:30]} Qe7 {[%emt 0:01:30]} 12. g3 {[%emt 0:16:30]} b5 {[%emt 0:12:30]} 13. Bg2 {[%emt 0:12:30]} bxc4 {[%emt 0:03:30]} 14. O-O {[%emt 0:04:30]} Red8 {[%emt 0:02:30]} 15. Rxc4 {[%emt 0:02:00]} d5 {[%emt 0:02:30]} 16. Rc5 {[%emt 0:06:15]} e5 {[%emt 0:00:30]} 17. Rfc1 {[%emt 0:05:24]} exd4 {[%emt 0:05:30]} 18. Nxd4 {[%emt 0:00:00]} Nxd4 {[%emt 0:03:30]} 19. Bxd4 {[%emt 0:02:19]} c6 {[%emt 0:00:30]} 20. exd5 {[%emt 0:02:29]} cxd5 {[%emt 0:00:30]} 21. Qc3 {[%emt 0:01:17]} Rac8 {[%emt 0:01:30]} 22. b4 {[%emt 0:00:13]} Ne8 {[%emt 0:02:30]} 23. Nd3 {[%emt 0:00:45]} Bf5 {[%emt 0:01:30]} 24. Nf4 {[%emt 0:00:28]} Rxc5 {[%emt 0:00:30]} 25. bxc5 {[%emt 0:00:15]} g5 {[%emt 0:01:30]} 26. Nh3 {[%emt 0:03:35]} Bxd4+ {[%emt 0:01:30]} 27. Qxd4 {[%emt 0:00:01]} Nc7 {[%emt 0:00:30]} 28. g4 {[%emt 0:01:11]} Bg6 {[%emt 0:00:30]} 29. f4 {[%emt 0:00:57]} Ne6 {[%emt 0:00:30]} 30. Qe5 {[%emt 0:00:21]} gxf4 {[%emt 0:00:30]} 31. Nxf4 {[%emt 0:00:05]} Qc7 {[%emt 0:00:30]} 32. Qxc7 {[%emt 0:01:04]} Nxc7 {[%emt 0:00:30]} 33. Nxd5 {[%emt 0:00:22]} Nxd5 {[%emt 0:01:30]} 34. Rd1 {[%emt 0:00:02]} Rb8 {[%emt 0:00:00]} 35. Bxd5 {[%emt 0:00:27]} Kf8 {[%emt 0:00:00]} 36. Bb3 {[%emt 0:01:14]} Rc8 {[%emt 0:00:30]} 37. Rc1 {[%emt 0:00:35]} Ke7 {[%emt 0:00:30]} 38. Kf2 {[%emt 0:00:07]} Kd7 {[%emt 0:00:00]} 39. Kf3 {[%emt 0:00:41]} h5 {[%emt 0:00:00]} 40. g5 {[%emt 0:00:33]} Kc7 {[%emt 0:00:30]} 41. Re1 {[%emt 0:00:54]} Kc6 {[%emt 0:00:30]} 42. Ba4+ {[%emt 0:00:20]} Kd5 {[%emt 0:00:30]} 43. c6 {[%emt 0:00:32]} Kc5 {[%emt 0:00:30]} 44. Rc1+ {[%emt 0:00:28]} Kb4 {[%emt 0:00:30]} 45. Bb3 {[%emt 0:00:05]} Rc7 {[%emt 0:00:30]} 46. Kf4 {[%emt 0:00:11]} Kb5 {[%emt 0:00:30]} 47. Ke5 {[%emt 0:00:20]} Rc8 {[%emt 0:00:30]} 48. c7 {[%emt 0:00:16]} 1-0